[Event "*** Titled Tuesday Blitz"]
[Site "Chess.com"]
[Date "2020.01.07"]
[Round "6"]
[White "arminmusovic"]
[Black "goldenspine"]
[Result "0-1"]
[WhiteElo "2496"]
[BlackElo "2354"]
[TimeControl "180+2"]
[EndTime "14:27:25 PST"]
[Termination "goldenspine won by resignation"]

1. a3 {[%clk 0:03:01.9]} 1... e5 {[%clk 0:03:00.7]} 2. Nc3 {[%clk 0:03:02.7]}
2... d5 {[%clk 0:03:01.8]} 3. d4 {[%clk 0:03:03.2]} 3... exd4 {[%clk 0:03:02.5]}
4. Qxd4 {[%clk 0:03:05.1]} 4... Nc6 {[%clk 0:03:02.4]} 5. Qxd5 {[%clk
0:03:06.1]} 5... Bd6 {[%clk 0:02:59.5]} 6. Bg5 {[%clk 0:03:05.9]} 6... Nf6
{[%clk 0:02:35.9]} 7. Qd3 {[%clk 0:03:03.2]} 7... h6 {[%clk 0:02:29.5]} 8. Bh4
{[%clk 0:02:59.6]} 8... O-O {[%clk 0:02:07.1]} 9. Ne4 {[%clk 0:02:44.1]} 9... g5
{[%clk 0:01:48.7]} 10. Nxd6 {[%clk 0:02:44.5]} 10... cxd6 {[%clk 0:01:37.8]} 11.
Bg3 {[%clk 0:02:44.6]} 11... Qa5+ {[%clk 0:01:38.4]} 12. Qd2 {[%clk 0:02:41.8]}
12... Qxd2+ {[%clk 0:01:25.6]} 13. Kxd2 {[%clk 0:02:43.7]} 13... Ne4+ {[%clk
0:01:27]} 14. Ke1 {[%clk 0:02:42.4]} 14... f5 {[%clk 0:01:14.6]} 15. f3 {[%clk
0:02:36.7]} 15... Nf6 {[%clk 0:01:05.3]} 16. Bxd6 {[%clk 0:02:21.9]} 16... Re8
{[%clk 0:01:06]} 17. Bg3 {[%clk 0:02:05.2]} 17... Nd4 {[%clk 0:00:52.2]} 18. Rc1
{[%clk 0:01:55.4]} 18... f4 {[%clk 0:00:45.5]} 19. Bf2 {[%clk 0:01:51.5]} 19...
Nf5 {[%clk 0:00:46.1]} 20. g4 {[%clk 0:01:45.4]} 20... Ne3 {[%clk 0:00:36.6]}
21. Bxe3 {[%clk 0:01:45]} 21... Rxe3 {[%clk 0:00:38.5]} 22. Nh3 {[%clk
0:01:42.7]} 22... Bd7 {[%clk 0:00:36.5]} 23. Nf2 {[%clk 0:01:43.8]} 23... Bc6
{[%clk 0:00:37.3]} 24. Nd1 {[%clk 0:01:42]} 24... Re7 {[%clk 0:00:35.2]} 25. e4
{[%clk 0:01:12.2]} 25... fxe3 {[%clk 0:00:30.4]} 26. Be2 {[%clk 0:01:04.3]}
26... Nxg4 {[%clk 0:00:29.6]} 27. h4 {[%clk 0:01:00.4]} 27... Ne5 {[%clk
0:00:12.9]} 28. hxg5 {[%clk 0:00:31.1]} 28... Nxf3+ {[%clk 0:00:13.2]} 29. Bxf3
{[%clk 0:00:30.7]} 29... Bxf3 {[%clk 0:00:15.1]} 30. Rxh6 {[%clk 0:00:27.9]}
30... Rd8 {[%clk 0:00:13]} 31. Nc3 {[%clk 0:00:23.5]} 31... Rd2 {[%clk
0:00:11.5]} 32. Rg6+ {[%clk 0:00:24.9]} 32... Kf7 {[%clk 0:00:10.2]} 33. Rf6+
{[%clk 0:00:26.1]} 33... Kg7 {[%clk 0:00:11.3]} 34. Rxf3 {[%clk 0:00:26.2]}
34... Rh2 {[%clk 0:00:12.7]} 35. Rd1 {[%clk 0:00:22.1]} 35... e2 {[%clk
0:00:10.1]} 36. Nxe2 {[%clk 0:00:22.5]} 36... Rexe2+ {[%clk 0:00:08]} 37. Kf1
{[%clk 0:00:24]} 37... Rxc2 {[%clk 0:00:08.6]} 38. Kg1 {[%clk 0:00:21.8]} 38...
Rhg2+ {[%clk 0:00:09]} 39. Kf1 {[%clk 0:00:20.7]} 39... Rh2 {[%clk 0:00:10.2]}
40. Kg1 {[%clk 0:00:20.7]} 40... Rcg2+ {[%clk 0:00:11.8]} 41. Kf1 {[%clk
0:00:21.8]} 41... Rxb2 {[%clk 0:00:13.7]} 42. Rd7+ {[%clk 0:00:22.9]} 42... Kg6
{[%clk 0:00:14.6]} 43. Kg1 {[%clk 0:00:23.4]} 43... Rhg2+ {[%clk 0:00:15.3]} 44.
Kf1 {[%clk 0:00:23.2]} 44... Rh2 {[%clk 0:00:16.6]} 45. Kg1 {[%clk 0:00:24.5]}
45... Rhg2+ {[%clk 0:00:17.9]} 46. Kf1 {[%clk 0:00:25.4]} 46... Rgc2 {[%clk
0:00:19.8]} 47. Rd1 {[%clk 0:00:23.9]} 47... Kxg5 {[%clk 0:00:20.7]} 48. Rg3+
{[%clk 0:00:22]} 48... Kf4 {[%clk 0:00:21.5]} 49. Rg8 {[%clk 0:00:23.1]} 49...
Rh2 {[%clk 0:00:21.7]} 50. Kg1 {[%clk 0:00:24.6]} 50... Rhe2 {[%clk 0:00:19.6]}
51. Rf1+ {[%clk 0:00:24.8]} 51... Ke5 {[%clk 0:00:19.8]} 52. Rg7 {[%clk
0:00:23.7]} 52... Kd6 {[%clk 0:00:19.2]} 53. Rc1 {[%clk 0:00:21.4]} 53... a6
{[%clk 0:00:14.3]} 54. Rg6+ {[%clk 0:00:21.8]} 54... Kd5 {[%clk 0:00:14.8]} 55.
Rg7 {[%clk 0:00:23.7]} 55... Kd6 {[%clk 0:00:15.1]} 56. Rg6+ {[%clk 0:00:24.8]}
56... Kd5 {[%clk 0:00:16]} 57. Rg7 {[%clk 0:00:26.3]} 57... Kd4 {[%clk
0:00:17.2]} 58. Rd7+ {[%clk 0:00:26.2]} 58... Ke5 {[%clk 0:00:15.6]} 59. Rg7
{[%clk 0:00:28.1]} 59... Kf6 {[%clk 0:00:15.8]} 60. Rg8 {[%clk 0:00:29.4]} 60...
Kf7 {[%clk 0:00:16.1]} 61. Rg3 {[%clk 0:00:30.5]} 61... Ra2 {[%clk 0:00:15.7]}
62. Rf1+ {[%clk 0:00:31.5]} 62... Ke6 {[%clk 0:00:15]} 63. Rb1 {[%clk
0:00:32.6]} 63... Reb2 {[%clk 0:00:13.5]} 64. Re1+ {[%clk 0:00:32.2]} 64... Kd5
{[%clk 0:00:14.4]} 65. Rf1 {[%clk 0:00:30.3]} 65... Kc4 {[%clk 0:00:14.8]} 66.
Rf4+ {[%clk 0:00:31.1]} 66... Kb5 {[%clk 0:00:15.7]} 67. Rg5+ {[%clk 0:00:31.9]}
67... Kb6 {[%clk 0:00:16.8]} 68. Rg6+ {[%clk 0:00:32]} 68... Ka7 {[%clk
0:00:17.9]} 69. Rf3 {[%clk 0:00:33.2]} 69... Rb1+ {[%clk 0:00:18]} 70. Rf1
{[%clk 0:00:34.4]} 70... Rxf1+ {[%clk 0:00:19.5]} 71. Kxf1 {[%clk 0:00:36.3]}
71... Rxa3 {[%clk 0:00:21.2]} 72. Ke2 {[%clk 0:00:37.9]} 72... Rc3 {[%clk
0:00:21.9]} 73. Kd2 {[%clk 0:00:39.3]} 73... Rc7 {[%clk 0:00:21.7]} 74. Kd3
{[%clk 0:00:40]} 74... a5 {[%clk 0:00:22.6]} 75. Kd4 {[%clk 0:00:41.1]} 75... b6
{[%clk 0:00:23.4]} 76. Kd5 {[%clk 0:00:42.4]} 76... Ka6 {[%clk 0:00:24.4]} 77.
Rg8 {[%clk 0:00:43.3]} 77... Kb5 {[%clk 0:00:24.8]} 78. Rg1 {[%clk 0:00:44]}
78... Rd7+ {[%clk 0:00:24.9]} 79. Ke4 {[%clk 0:00:45.4]} 79... a4 {[%clk
0:00:25.9]} 80. Rb1+ {[%clk 0:00:46.3]} 80... Ka5 {[%clk 0:00:27]} 81. Ke5
{[%clk 0:00:47.3]} 81... b5 {[%clk 0:00:26.4]} 82. Ke6 {[%clk 0:00:49.2]} 82...
Rd2 {[%clk 0:00:27]} 83. Ke5 {[%clk 0:00:50.5]} 83... a3 {[%clk 0:00:28]} 84.
Ke4 {[%clk 0:00:51.9]} 84... b4 {[%clk 0:00:29.2]} 85. Ke3 {[%clk 0:00:51.6]}
85... Rd8 {[%clk 0:00:29.9]} 86. Ra1 {[%clk 0:00:53.5]} 86... Ka4 {[%clk
0:00:30.7]} 87. Rh1 {[%clk 0:00:55.1]} 87... a2 {[%clk 0:00:31.9]} 88. Ra1
{[%clk 0:00:55.1]} 88... Ka3 {[%clk 0:00:33]} 89. Ke4 {[%clk 0:00:56.8]} 89...
b3 {[%clk 0:00:34.1]} 90. Rh1 {[%clk 0:00:57.7]} 90... b2 {[%clk 0:00:32.3]} 91.
Rh3+ {[%clk 0:00:58.7]} 91... Kb4 {[%clk 0:00:33.3]} 92. Ke5 {[%clk 0:00:58.9]}
92... b1=Q {[%clk 0:00:32.9]} 93. Rh4+ {[%clk 0:00:58.3]} 93... Kb5 {[%clk
0:00:33.7]} 94. Ke6 {[%clk 0:00:58.7]} 94... a1=Q {[%clk 0:00:34.2]} 95. Rh5+
{[%clk 0:00:56.7]} 95... Kb6 {[%clk 0:00:33.9]} 96. Ke7 {[%clk 0:00:56.5]} 96...
Qe1+ {[%clk 0:00:24.4]} 97. Kxd8 {[%clk 0:00:53.8]} 97... Qad1+ {[%clk
0:00:24.6]} 0-1

[Event "*** Titled Tuesday Blitz"]
[Site "Chess.com"]
[Date "2020.01.07"]
[Round "6"]
[White "lucasran"]
[Black "iLuusions"]
[Result "1/2-1/2"]
[WhiteElo "2648"]
[BlackElo "2473"]
[TimeControl "180+2"]
[EndTime "14:27:37 PST"]
[Termination "Game drawn by agreement"]

1. Nf3 {[%clk 0:03:01.9]} 1... Nf6 {[%clk 0:03:00.7]} 2. c4 {[%clk 0:03:02.4]}
2... e6 {[%clk 0:03:01.5]} 3. g3 {[%clk 0:03:03]} 3... d5 {[%clk 0:03:02.9]} 4.
Bg2 {[%clk 0:03:04.2]} 4... dxc4 {[%clk 0:03:04.4]} 5. Qa4+ {[%clk 0:03:04.7]}
5... Nbd7 {[%clk 0:03:04.1]} 6. Qxc4 {[%clk 0:03:05.4]} 6... c5 {[%clk
0:03:05.8]} 7. Qb3 {[%clk 0:03:02.3]} 7... Rb8 {[%clk 0:02:59.5]} 8. a4 {[%clk
0:03:02.6]} 8... b6 {[%clk 0:02:59.5]} 9. d3 {[%clk 0:03:03.3]} 9... Bd6 {[%clk
0:03:00.2]} 10. Na3 {[%clk 0:03:03.5]} 10... a6 {[%clk 0:02:56.7]} 11. O-O
{[%clk 0:03:02.7]} 11... Bb7 {[%clk 0:02:55.3]} 12. Nc4 {[%clk 0:03:02.8]} 12...
Bc7 {[%clk 0:02:56.5]} 13. Bd2 {[%clk 0:03:02.7]} 13... O-O {[%clk 0:02:56.8]}
14. Rfc1 {[%clk 0:03:02.4]} 14... e5 {[%clk 0:02:31.5]} 15. e4 {[%clk
0:02:58.1]} 15... Qe7 {[%clk 0:02:24.8]} 16. Qa3 {[%clk 0:02:58]} 16... a5
{[%clk 0:02:14.8]} 17. Ne1 {[%clk 0:02:21.6]} 17... Rfd8 {[%clk 0:02:13.5]} 18.
Rd1 {[%clk 0:02:20.3]} 18... Nf8 {[%clk 0:02:10.8]} 19. Nc2 {[%clk 0:02:15.9]}
19... Ne6 {[%clk 0:02:09.4]} 20. Bc3 {[%clk 0:02:13.4]} 20... Nd7 {[%clk
0:01:18.6]} 21. Rf1 {[%clk 0:02:09.5]} 21... f6 {[%clk 0:01:00.3]} 22. N2e3
{[%clk 0:02:05.6]} 22... Ndf8 {[%clk 0:00:59.4]} 23. Nd5 {[%clk 0:01:46.4]}
23... Bxd5 {[%clk 0:00:59.4]} 24. exd5 {[%clk 0:01:48.3]} 24... Ng5 {[%clk
0:00:48.1]} 25. Rae1 {[%clk 0:01:38.5]} 25... Qd7 {[%clk 0:00:48.5]} 26. Re3
{[%clk 0:01:10.2]} 26... Ng6 {[%clk 0:00:47.7]} 27. b3 {[%clk 0:01:09]} 27...
Nf7 {[%clk 0:00:34.8]} 28. Re2 {[%clk 0:01:06.6]} 28... Ne7 {[%clk 0:00:32.8]}
29. Ne3 {[%clk 0:01:06]} 29... Nd6 {[%clk 0:00:26.3]} 30. Rfe1 {[%clk 0:01:05]}
30... Nef5 {[%clk 0:00:23]} 31. Nxf5 {[%clk 0:01:00.6]} 31... Nxf5 {[%clk
0:00:23.8]} 32. Qb2 {[%clk 0:00:25.4]} 32... Ne7 {[%clk 0:00:21.4]} 33. f4
{[%clk 0:00:25.9]} 33... Nxd5 {[%clk 0:00:22.8]} 34. Bxd5+ {[%clk 0:00:21.5]}
34... Qxd5 {[%clk 0:00:24.7]} 35. fxe5 {[%clk 0:00:22.7]} 35... fxe5 {[%clk
0:00:23.8]} 36. Bxe5 {[%clk 0:00:24.6]} 36... Bxe5 {[%clk 0:00:23.5]} 37. Rxe5
{[%clk 0:00:26.5]} 37... Qxd3 {[%clk 0:00:24.8]} 38. Re7 {[%clk 0:00:20.4]}
38... Rd4 {[%clk 0:00:13.8]} 39. Qf2 {[%clk 0:00:20.6]} 39... Qg6 {[%clk
0:00:10.4]} 40. Qe3 {[%clk 0:00:16]} 40... Rf8 {[%clk 0:00:07.1]} 41. Qe5 {[%clk
0:00:10.4]} 41... h6 {[%clk 0:00:04.3]} 42. Qc7 {[%clk 0:00:07.1]} 42... Qf6
{[%clk 0:00:04]} 43. R7e2 {[%clk 0:00:04.7]} 43... Rd3 {[%clk 0:00:05.3]} 44.
Qe7 {[%clk 0:00:04.4]} 44... Qxe7 {[%clk 0:00:04.9]} 45. Rxe7 {[%clk 0:00:06.3]}
45... Rf7 {[%clk 0:00:06.5]} 46. Re8+ {[%clk 0:00:07.3]} 46... Kh7 {[%clk
0:00:08]} 47. R8e3 {[%clk 0:00:08.5]} 47... Rfd7 {[%clk 0:00:08.1]} 48. Kf2
{[%clk 0:00:08.3]} 48... Kg6 {[%clk 0:00:08.5]} 49. Kf3 {[%clk 0:00:08.9]} 49...
Kf7 {[%clk 0:00:07.9]} 50. Re2 {[%clk 0:00:07.2]} 50... R7d4 {[%clk 0:00:07.9]}
51. Kf2 {[%clk 0:00:07.1]} 51... Rxe3 {[%clk 0:00:09.2]} 52. Rxe3 {[%clk
0:00:09]} 52... Rb4 {[%clk 0:00:09.3]} 53. Kf3 {[%clk 0:00:07]} 53... Kf6 {[%clk
0:00:09]} 54. Rd3 {[%clk 0:00:04.2]} 54... Ke5 {[%clk 0:00:08.2]} 55. Ke3 {[%clk
0:00:05.2]} 55... h5 {[%clk 0:00:06.7]} 56. h3 {[%clk 0:00:05.2]} 56... g6
{[%clk 0:00:05.7]} 57. Kf3 {[%clk 0:00:05.7]} 57... Ke6 {[%clk 0:00:04.2]} 58.
Ke3 {[%clk 0:00:06.7]} 58... Ke5 {[%clk 0:00:05.7]} 59. Kf3 {[%clk 0:00:08.1]}
59... Rd4 {[%clk 0:00:06.6]} 60. Re3+ {[%clk 0:00:09]} 60... Kf6 {[%clk
0:00:08]} 61. Ke2 {[%clk 0:00:09.5]} 61... c4 {[%clk 0:00:06.5]} 62. bxc4 {[%clk
0:00:10.3]} 62... Rxc4 {[%clk 0:00:08.4]} 63. Rb3 {[%clk 0:00:11.7]} 63... Rxa4
{[%clk 0:00:08.4]} 64. Rxb6+ {[%clk 0:00:12.7]} 64... Kg5 {[%clk 0:00:10.3]} 65.
Kf3 {[%clk 0:00:11]} 65... Ra3+ {[%clk 0:00:10.9]} 66. Kg2 {[%clk 0:00:12.4]}
66... h4 {[%clk 0:00:11.3]} 67. Rb5+ {[%clk 0:00:12.6]} 67... Kh6 {[%clk
0:00:11.4]} 68. gxh4 {[%clk 0:00:13.8]} 68... a4 {[%clk 0:00:11.6]} 69. Ra5
{[%clk 0:00:15.2]} 69... Ra2+ {[%clk 0:00:12.9]} 70. Kg3 {[%clk 0:00:16.7]}
70... Ra1 {[%clk 0:00:14.8]} 71. Kg2 {[%clk 0:00:17.6]} 71... Kg7 {[%clk
0:00:15.7]} 72. Ra6 {[%clk 0:00:18.1]} 72... a3 {[%clk 0:00:16.4]} 73. Ra5
{[%clk 0:00:18.8]} 73... Kh6 {[%clk 0:00:17.4]} 74. Kh2 {[%clk 0:00:18.5]} 74...
Ra2+ {[%clk 0:00:16.2]} 75. Kg3 {[%clk 0:00:19.7]} 75... Ra1 {[%clk 0:00:14.4]}
76. Kg2 {[%clk 0:00:09.9]} 76... Ra2+ {[%clk 0:00:14.5]} 77. Kg3 {[%clk
0:00:10.9]} 77... Ra1 {[%clk 0:00:16]} 78. Kh2 {[%clk 0:00:12.2]} 78... Kg7
{[%clk 0:00:17.4]} 79. h5 {[%clk 0:00:12.1]} 79... gxh5 {[%clk 0:00:14]} 80.
Rxh5 {[%clk 0:00:14]} 80... Kg6 {[%clk 0:00:13.9]} 81. Ra5 {[%clk 0:00:15]}
81... a2 {[%clk 0:00:14.4]} 82. h4 {[%clk 0:00:16]} 82... Kh6 {[%clk 0:00:15.7]}
83. Kg2 {[%clk 0:00:17.2]} 83... Kg6 {[%clk 0:00:16.5]} 84. Kh2 {[%clk
0:00:17.4]} 84... Kh6 {[%clk 0:00:17.9]} 85. Kg2 {[%clk 0:00:18.5]} 85... Kg6
{[%clk 0:00:19.4]} 86. h5+ {[%clk 0:00:17.5]} 86... Kh6 {[%clk 0:00:20.6]} 87.
Kh2 {[%clk 0:00:19]} 87... Rb1 {[%clk 0:00:18.9]} 88. Rxa2 {[%clk 0:00:19.3]}
88... Kxh5 {[%clk 0:00:20.2]} 89. Ra5+ {[%clk 0:00:18.8]} 1/2-1/2

[Event "*** Titled Tuesday Blitz"]
[Site "Chess.com"]
[Date "2020.01.07"]
[Round "6"]
[White "wonderfultime"]
[Black "Gareth-Bale11"]
[Result "1-0"]
[WhiteElo "2962"]
[BlackElo "2727"]
[TimeControl "180+2"]
[EndTime "14:27:41 PST"]
[Termination "wonderfultime won by resignation"]

1. d4 {[%clk 0:03:01.9]} 1... Nf6 {[%clk 0:03:00.5]} 2. Nf3 {[%clk 0:03:02.6]}
2... d5 {[%clk 0:03:00.2]} 3. Bf4 {[%clk 0:03:03.8]} 3... c5 {[%clk 0:02:56.6]}
4. c3 {[%clk 0:03:05]} 4... Nc6 {[%clk 0:02:51.4]} 5. e3 {[%clk 0:03:06.2]} 5...
Bg4 {[%clk 0:02:47.8]} 6. Nbd2 {[%clk 0:02:26.1]} 6... e6 {[%clk 0:02:44.2]} 7.
h3 {[%clk 0:02:27.5]} 7... Bh5 {[%clk 0:02:44.7]} 8. Qb3 {[%clk 0:02:28.5]} 8...
Qc8 {[%clk 0:02:43.9]} 9. Be2 {[%clk 0:02:12.7]} 9... Be7 {[%clk 0:02:37.3]} 10.
O-O {[%clk 0:02:13.7]} 10... O-O {[%clk 0:02:37.6]} 11. Rfe1 {[%clk 0:02:10.9]}
11... h6 {[%clk 0:02:32.6]} 12. Rac1 {[%clk 0:02:05.9]} 12... c4 {[%clk
0:02:29.9]} 13. Qd1 {[%clk 0:02:04.3]} 13... Bg6 {[%clk 0:02:29.7]} 14. Ne5
{[%clk 0:01:59.4]} 14... Nxe5 {[%clk 0:02:29]} 15. Bxe5 {[%clk 0:01:59.5]} 15...
b5 {[%clk 0:02:25.5]} 16. Bf3 {[%clk 0:01:53.2]} 16... Qd7 {[%clk 0:02:13.1]}
17. e4 {[%clk 0:01:49.7]} 17... Rfd8 {[%clk 0:01:50.3]} 18. exd5 {[%clk
0:01:42.3]} 18... exd5 {[%clk 0:01:34.5]} 19. Nf1 {[%clk 0:01:36.2]} 19... Ne4
{[%clk 0:01:30]} 20. Bf4 {[%clk 0:01:21.1]} 20... b4 {[%clk 0:01:06.8]} 21. Ne3
{[%clk 0:01:20.6]} 21... bxc3 {[%clk 0:01:07.5]} 22. bxc3 {[%clk 0:01:22.5]}
22... Ba3 {[%clk 0:01:08]} 23. Rc2 {[%clk 0:01:24]} 23... Nf6 {[%clk 0:01:00.8]}
24. Rd2 {[%clk 0:01:12.9]} 24... Ne4 {[%clk 0:01:01.3]} 25. Bxe4 {[%clk
0:01:09.8]} 25... Bxe4 {[%clk 0:01:01.4]} 26. Nxc4 {[%clk 0:01:08.7]} 26... Qf5
{[%clk 0:00:40.4]} 27. Nxa3 {[%clk 0:00:52.4]} 27... Qxf4 {[%clk 0:00:41.3]} 28.
Nc2 {[%clk 0:00:43.6]} 28... Rdc8 {[%clk 0:00:40.3]} 29. Ne3 {[%clk 0:00:41.2]}
29... Rxc3 {[%clk 0:00:40]} 30. Qa4 {[%clk 0:00:36.2]} 30... Qg5 {[%clk
0:00:38.2]} 31. Qa5 {[%clk 0:00:29.5]} 31... Rc6 {[%clk 0:00:25.9]} 32. Qb5
{[%clk 0:00:12.7]} 32... Rac8 {[%clk 0:00:22.9]} 33. Qf1 {[%clk 0:00:10.8]}
33... Qf4 {[%clk 0:00:22.7]} 34. f3 {[%clk 0:00:11.2]} 34... Bg6 {[%clk
0:00:19.7]} 35. Qf2 {[%clk 0:00:12.7]} 35... Qd6 {[%clk 0:00:20.1]} 36. h4
{[%clk 0:00:12.8]} 36... Rc1 {[%clk 0:00:19.5]} 37. Re2 {[%clk 0:00:13.1]} 37...
Rxe1+ {[%clk 0:00:19.1]} 38. Rxe1 {[%clk 0:00:15]} 38... Bd3 {[%clk 0:00:17.7]}
39. h5 {[%clk 0:00:13.7]} 39... Re8 {[%clk 0:00:15.9]} 40. Ng4 {[%clk
0:00:14.4]} 40... Rxe1+ {[%clk 0:00:14.8]} 41. Qxe1 {[%clk 0:00:16.3]} 41... Kf8
{[%clk 0:00:10.5]} 42. Ne5 {[%clk 0:00:16.7]} 42... Bb5 {[%clk 0:00:09.5]} 43.
Qa5 {[%clk 0:00:16]} 43... Qb6 {[%clk 0:00:10.6]} 44. Qb4+ {[%clk 0:00:14.5]}
44... Ke8 {[%clk 0:00:11.5]} 45. Qc3 {[%clk 0:00:12.3]} 45... Bd7 {[%clk
0:00:12]} 46. a3 {[%clk 0:00:08.3]} 46... f6 {[%clk 0:00:12.5]} 47. Nd3 {[%clk
0:00:09.5]} 47... Qb1+ {[%clk 0:00:13.3]} 48. Kh2 {[%clk 0:00:10.6]} 48... Qb8+
{[%clk 0:00:14.3]} 49. Kh1 {[%clk 0:00:11.4]} 49... Qb1+ {[%clk 0:00:15.3]} 50.
Kh2 {[%clk 0:00:11.2]} 50... Qb8+ {[%clk 0:00:17.2]} 51. Kg1 {[%clk 0:00:12.8]}
51... Qb1+ {[%clk 0:00:18.4]} 52. Kf2 {[%clk 0:00:14.5]} 52... Qa2+ {[%clk
0:00:19.3]} 53. Kg3 {[%clk 0:00:16]} 53... Qe2 {[%clk 0:00:19.4]} 54. Nc5 {[%clk
0:00:15.9]} 54... Bb5 {[%clk 0:00:18.6]} 55. a4 {[%clk 0:00:16.2]} 55... Bc4
{[%clk 0:00:19.3]} 56. Qb4 {[%clk 0:00:13.1]} 56... Qe3 {[%clk 0:00:15.1]} 57.
Qb8+ {[%clk 0:00:14]} 57... Kf7 {[%clk 0:00:16.4]} 58. Qxa7+ {[%clk 0:00:12.8]}
58... Kg8 {[%clk 0:00:17.7]} 59. Qb8+ {[%clk 0:00:14]} 59... Kh7 {[%clk
0:00:18]} 60. Qf4 {[%clk 0:00:15.4]} 60... Qe1+ {[%clk 0:00:17.8]} 61. Kh2
{[%clk 0:00:17]} 61... Bf1 {[%clk 0:00:18.3]} 62. Qf5+ {[%clk 0:00:15.1]} 62...
Kh8 {[%clk 0:00:19.2]} 63. Qc8+ {[%clk 0:00:16.4]} 63... Kh7 {[%clk 0:00:20]}
64. Qf5+ {[%clk 0:00:18.3]} 64... Kh8 {[%clk 0:00:20.7]} 65. Qf4 {[%clk
0:00:17.3]} 65... Qf2 {[%clk 0:00:19.1]} 66. Qg3 {[%clk 0:00:18.7]} 66... Qxd4
{[%clk 0:00:20]} 67. Qxg7+ {[%clk 0:00:17.8]} 67... Kxg7 {[%clk 0:00:20.1]} 68.
Ne6+ {[%clk 0:00:19.7]} 68... Kf7 {[%clk 0:00:20.9]} 69. Nxd4 {[%clk 0:00:21.6]}
69... Bd3 {[%clk 0:00:20.4]} 70. Kg3 {[%clk 0:00:22.9]} 70... Ke7 {[%clk
0:00:21.9]} 71. Kf4 {[%clk 0:00:24.3]} 71... Kd6 {[%clk 0:00:23.4]} 72. a5
{[%clk 0:00:23.2]} 72... Kc5 {[%clk 0:00:24]} 73. Ke3 {[%clk 0:00:18.3]} 73...
Bh7 {[%clk 0:00:23.3]} 74. g4 {[%clk 0:00:18.2]} 74... Bb1 {[%clk 0:00:23.3]}
75. Kd2 {[%clk 0:00:08.4]} 75... Ba2 {[%clk 0:00:14.5]} 76. Kc3 {[%clk
0:00:05.9]} 76... Bc4 {[%clk 0:00:15.7]} 77. Nf5 {[%clk 0:00:07.4]} 77... Be2
{[%clk 0:00:16]} 78. Nd4 {[%clk 0:00:08.3]} 78... Bc4 {[%clk 0:00:16.6]} 79. f4
{[%clk 0:00:09.8]} 79... Bf1 {[%clk 0:00:15.1]} 80. g5 {[%clk 0:00:10]} 80...
fxg5 {[%clk 0:00:14.9]} 81. fxg5 {[%clk 0:00:11.5]} 81... Bg2 {[%clk 0:00:16.1]}
82. g6 {[%clk 0:00:10.8]} 82... Be4 {[%clk 0:00:18]} 83. g7 {[%clk 0:00:10.8]}
83... Bh7 {[%clk 0:00:18.9]} 84. Nf5 {[%clk 0:00:07.6]} 84... Kb5 {[%clk
0:00:18.7]} 85. Nxh6 {[%clk 0:00:08.4]} 85... Kxa5 {[%clk 0:00:19.6]} 86. g8=Q
{[%clk 0:00:09.9]} 86... Bxg8 {[%clk 0:00:21.5]} 87. Nxg8 {[%clk 0:00:11.8]} 1-0

[Event "*** Titled Tuesday Blitz"]
[Site "Chess.com"]
[Date "2020.01.07"]
[Round "7"]
[White "Vugar_Manafov"]
[Black "Gabrielian_Artur"]
[Result "0-1"]
[WhiteElo "2598"]
[BlackElo "2792"]
[TimeControl "180+2"]
[EndTime "14:30:24 PST"]
[Termination "Gabrielian_Artur won by resignation"]

1. Nf3 {[%clk 0:03:01.8]} 1... c5 {[%clk 0:03:00.2]} 2. g3 {[%clk 0:03:02.4]}
2... Nc6 {[%clk 0:03:00.8]} 3. Bg2 {[%clk 0:03:01.2]} 3... g6 {[%clk 0:03:02.3]}
4. O-O {[%clk 0:03:00.1]} 4... Bg7 {[%clk 0:03:03.5]} 5. e4 {[%clk 0:02:58.5]}
5... d6 {[%clk 0:03:04.4]} 6. d3 {[%clk 0:02:58.1]} 6... e5 {[%clk 0:03:05.3]}
7. Nh4 {[%clk 0:02:58.3]} 7... Nge7 {[%clk 0:03:06]} 8. f4 {[%clk 0:02:58.4]}
8... exf4 {[%clk 0:02:58.5]} 9. gxf4 {[%clk 0:03:00.2]} 9... f5 {[%clk
0:02:54.6]} 10. exf5 {[%clk 0:02:59.4]} 10... Nxf5 {[%clk 0:02:55.8]} 11. Nxf5
{[%clk 0:03:00.6]} 11... Bxf5 {[%clk 0:02:56.7]} 12. Re1+ {[%clk 0:03:02]} 12...
Kd7 {[%clk 0:02:57.7]} 13. Nc3 {[%clk 0:03:01.3]} 13... Qh4 {[%clk 0:02:55]} 14.
Be3 {[%clk 0:02:47]} 14... Rae8 {[%clk 0:02:53.6]} 15. Qf3 {[%clk 0:02:43.9]}
15... Bd4 {[%clk 0:02:33]} 16. Bxd4 {[%clk 0:02:42.3]} 16... Rxe1+ {[%clk
0:02:33.1]} 0-1

[Event "*** Titled Tuesday Blitz"]
[Site "Chess.com"]
[Date "2020.01.07"]
[Round "7"]
[White "Majkelopulos"]
[Black "attack2mateU"]
[Result "0-1"]
[WhiteElo "2527"]
[BlackElo "2683"]
[TimeControl "180+2"]
[EndTime "14:31:32 PST"]
[Termination "attack2mateU won by checkmate"]

1. e4 {[%clk 0:03:01.9]} 1... c5 {[%clk 0:03:00.1]} 2. Ne2 {[%clk 0:03:02.8]}
2... Nf6 {[%clk 0:03:00.4]} 3. Nbc3 {[%clk 0:03:01.1]} 3... d6 {[%clk
0:03:01.2]} 4. d4 {[%clk 0:03:01.1]} 4... cxd4 {[%clk 0:03:02.3]} 5. Nxd4 {[%clk
0:03:03]} 5... a6 {[%clk 0:03:02.8]} 6. Be3 {[%clk 0:03:02.8]} 6... e5 {[%clk
0:03:03.2]} 7. Nb3 {[%clk 0:03:03.9]} 7... Be6 {[%clk 0:03:03.4]} 8. f4 {[%clk
0:03:05.5]} 8... exf4 {[%clk 0:02:37.8]} 9. Bxf4 {[%clk 0:03:07.4]} 9... Nc6
{[%clk 0:02:38.3]} 10. Qe2 {[%clk 0:03:07.9]} 10... Be7 {[%clk 0:02:27.7]} 11.
h3 {[%clk 0:03:08.9]} 11... a5 {[%clk 0:02:13.5]} 12. O-O-O {[%clk 0:03:02.5]}
12... a4 {[%clk 0:02:12.9]} 13. Nc5 {[%clk 0:03:00.8]} 13... a3 {[%clk
0:02:02.5]} 14. b3 {[%clk 0:02:53.3]} 14... Qa5 {[%clk 0:02:01.1]} 15. Nxe6
{[%clk 0:02:44.3]} 15... Qxc3 {[%clk 0:02:01]} 16. Nxg7+ {[%clk 0:02:41.8]}
16... Kf8 {[%clk 0:02:00.8]} 17. Nf5 {[%clk 0:02:40.1]} 17... Nb4 {[%clk
0:01:57.7]} 18. Bh6+ {[%clk 0:02:32]} 18... Ke8 {[%clk 0:01:57.5]} 19. Qb5+
{[%clk 0:02:24.5]} 19... Nd7 {[%clk 0:01:58.2]} 20. Rd2 {[%clk 0:01:59.6]} 20...
Qa1# {[%clk 0:01:58.2]} 0-1